bitfinex/quotes_ETHUSD_20230902
["timestamp","ask_amount","ask_price","bid_price","bid_amount"]
[1693672956051,5.96146087,1637.4,1637.3,7.66250404]
[1693672956203,7.1260545,1637.4,1637.3,7.66250404]
[1693672959759,8.29828661,1637.4,1637.3,7.66250404]
[1693672959911,8.61753992,1637.4,1637.3,7.66250404]
[1693672960644,8.61753992,1637.4,1637.3,7.02571099]
[1693672961644,8.61753992,1637.4,1637.3,3.94385695]
[1693672963437,8.61753992,1637.4,1637.3,4.8477741]
[1693672966162,8.61753992,1637.4,1637.3,3.94385695]
[1693672971877,7.44530781,1637.4,1637.3,3.94385695]
[1693672972160,10.44530781,1637.4,1637.3,3.94385695]
[1693672979288,7.44530781,1637.4,1637.3,3.94385695]
[1693672980254,10.44530781,1637.4,1637.3,3.94385695]
[1693672985600,7.44530781,1637.4,1637.3,3.94385695]
[1693672986088,10.44530781,1637.4,1637.3,3.94385695]
[1693672990500,7.44530781,1637.4,1637.3,3.94385695]
[1693672991090,10.44530781,1637.4,1637.3,3.94385695]
[1693672996199,7.44530781,1637.4,1637.3,3.94385695]
[1693672996366,10.44530781,1637.4,1637.3,3.94385695]
[1693672999077,11.68139058,1637.4,1637.3,3.94385695]
[1693672999599,10.08512403,1637.4,1637.3,3.94385695]
[1693673010423,10.08512403,1637.4,1637.2,0.4861122]
[1693673010626,10.08512403,1637.4,1637.0,6.4329]
[1693673010627,6.37429506,1637.3,1637.0,6.4329]
[1693673010918,1.27888835,1637.2,1637.1,3.08185404]
[1693673011118,6.06011787,1637.2,1637.1,3.08185404]
[1693673013727,4.89673006,1637.2,1637.1,3.08185404]
[1693673014527,9.06026607,1637.2,1637.1,3.08185404]
[1693673016428,10.13670667,1637.2,1637.1,3.08185404]
[1693673032283,10.13670667,1637.2,1637.1,7.66312404]
[1693673041529,8.97309269,1637.2,1637.1,7.66312404]
[1693673041957,10.13670104,1637.2,1637.1,7.56312404]
[1693673042632,10.1367003,1637.2,1637.1,7.56312404]
[1693673043470,7.1367003,1637.2,1637.1,8.52333736]
[1693673051754,7.1367003,1637.2,1637.1,7.56312404]
[1693673056281,7.1367003,1637.2,1637.1,9.10712404]
[1693673059815,10.1367003,1637.2,1637.1,9.10712404]
[1693673066308,10.1367003,1637.2,1637.1,7.56312404]
[1693673069615,7.1367003,1637.2,1637.1,7.56312404]
[1693673069811,10.1367003,1637.2,1637.1,7.56312404]
[1693673070113,11.492854,1637.2,1637.1,7.56312404]
[1693673070620,11.8126024,1637.2,1637.1,4.58127]
[1693673070918,0.14187118,1637.0,1636.9,0.90935201]
[1693673071088,3.01946005,1637.0,1636.9,3.08185404]
[1693673071287,10.79526019,1637.0,1636.9,3.08185404]
[1693673071483,10.26983218,1637.0,1636.9,3.08185404]
[1693673072592,10.27537544,1637.0,1636.9,3.08185404]
[1693673072818,11.64611903,1637.0,1636.9,3.08185404]
[1693673073426,11.64611903,1637.0,1636.9,7.66355404]
[1693673073626,10.27537544,1637.0,1636.9,7.66355404]
[1693673073826,10.2756999,1637.0,1636.9,7.66355404]
[1693673074507,9.11090464,1637.0,1636.9,7.66355404]
[1693673075243,10.27570234,1637.0,1636.9,7.66355404]
[1693673075545,9.11075774,1637.0,1636.9,7.66355404]
[1693673075901,9.11075774,1637.0,1636.9,4.5817]
[1693673076128,10.36503956,1637.0,1636.9,4.5817]
[1693673077400,9.08611117,1637.0,1636.9,4.5817]
[1693673083424,9.08611117,1637.0,1636.8,0.47826006]
[1693673083638,9.08611117,1637.0,1636.5,81.83541677]
[1693673083639,3.61118244,1636.9,1636.5,81.83541677]
[1693673083836,1.69940983,1636.8,1636.6,3.08185404]
[1693673084038,3.64169975,1636.8,1636.6,3.08185404]
[1693673085856,3.00354677,1636.8,1636.6,3.08185404]
[1693673086021,3.00354677,1636.8,1636.6,7.66446404]
[1693673093068,3.00218138,1636.8,1636.6,7.66446404]
[1693673094466,3.64033436,1636.8,1636.6,7.66446404]
[1693673098573,1.71523436,1636.8,1636.6,15.06031075]
[1693673099964,1.07606162,1636.8,1636.6,15.06031075]
[1693673100340,0.00301524,1636.8,1636.6,15.06031075]
[1693673100750,1.07335614,1636.7,1636.6,15.06031075]
[1693673100973,1.07335614,1636.7,1636.6,18.06031075]
[1693673101169,0.63815298,1636.9,1636.6,18.06031075]
[1693673101473,1.0739851,1636.8,1636.6,15.06031075]
[1693673101938,0.63815298,1636.9,1636.6,15.06031075]
[1693673102134,3.29194932,1636.9,1636.6,15.06031075]
[1693673102361,0.63815298,1636.9,1636.6,15.06031075]
[1693673102562,3.29194808,1636.9,1636.6,15.06031075]
[1693673102735,0.63815298,1636.9,1636.6,15.06031075]
[1693673102935,3.2919488,1636.9,1636.6,15.06031075]
[1693673103148,0.63815298,1636.9,1636.6,15.06031075]
[1693673103349,3.29194981,1636.9,1636.6,15.06031075]
[1693673103569,1.59619329,1636.9,1636.6,15.06031075]
[1693673103764,4.24999049,1636.9,1636.6,15.06031075]
[1693673103970,0.63815298,1636.9,1636.6,15.06031075]
[1693673104169,3.29194957,1636.9,1636.6,15.06031075]
[1693673104372,0.63815298,1636.9,1636.6,15.06031075]
[1693673104675,4.24998962,1636.9,1636.6,15.06031075]
[1693673104874,1.59619329,1636.9,1636.6,15.06031075]
[1693673105076,4.24998997,1636.9,1636.6,15.06031075]
[1693673105278,1.59619329,1636.9,1636.6,15.06031075]
[1693673105572,4.2499893,1636.9,1636.6,15.06031075]
[1693673105767,1.59619329,1636.9,1636.6,15.06031075]
[1693673105975,4.24998887,1636.9,1636.6,15.06031075]
[1693673106174,1.59619329,1636.9,1636.6,15.06031075]
[1693673106371,1.06973865,1636.8,1636.6,15.06031075]
[1693673106897,1.59619329,1636.9,1636.6,15.06031075]
[1693673107075,4.24998857,1636.9,1636.6,15.06031075]
[1693673107265,1.59619329,1636.9,1636.6,15.06031075]
[1693673107466,4.24998804,1636.9,1636.6,15.06031075]
[1693673107666,1.59619329,1636.9,1636.6,15.06031075]
[1693673107845,4.24998809,1636.9,1636.6,15.06031075]
[1693673108045,1.59619329,1636.9,1636.6,15.06031075]
[1693673108246,4.24998787,1636.9,1636.6,15.06031075]
[1693673108445,1.59619329,1636.9,1636.6,15.06031075]
[1693673108677,4.24999232,1636.9,1636.6,15.06031075]
[1693673108979,1.59619329,1636.9,1636.6,15.06031075]
[1693673109277,4.249991,1636.9,1636.6,15.06031075]
[1693673109445,1.59619329,1636.9,1636.6,15.06031075]
[1693673109648,4.24999006,1636.9,1636.6,15.06031075]
[1693673109858,3.42749329,1636.9,1636.6,15.06031075]
[1693673110481,1.69967123,1636.8,1636.6,15.06031075]
[1693673110782,3.2919499,1636.8,1636.6,7.66446404]
[1693673111446,6.08129021,1636.8,1636.6,7.66446404]
[1693673111642,3.42749329,1636.8,1636.6,7.66446404]
[1693673113962,1.69973783,1636.7,1636.6,7.66446404]
[1693673114166,1.69973783,1636.7,1636.6,10.66446404]
[1693673114876,1.69973783,1636.7,1636.6,10.16446404]
[1693673115472,3.29210953,1636.7,1636.6,10.16446404]
[1693673116157,1.69973783,1636.7,1636.6,10.16446404]
[1693673116689,3.29210807,1636.7,1636.6,10.16446404]
[1693673117383,3.29210807,1636.7,1636.6,11.70846404]
[1693673117690,1.69973783,1636.7,1636.6,17.81031075]
[1693673117850,3.29210263,1636.7,1636.6,17.81031075]
[1693673118058,2.23051778,1636.7,1636.6,17.81031075]
[1693673118485,1.69973783,1636.7,1636.6,17.81031075]
[1693673118682,1.69973783,1636.7,1636.6,11.70846404]
[1693673119163,0.63815298,1636.7,1636.6,11.70846404]
[1693673121366,1.69721627,1636.7,1636.6,11.70846404]
[1693673121678,4.35117063,1636.7,1636.6,11.70846404]
[1693673122492,4.35117063,1636.7,1636.6,10.16446404]
[1693673122687,4.35117063,1636.7,1636.6,11.70846404]
[1693673132139,4.35818087,1636.7,1636.6,11.70846404]
[1693673142894,1.06607353,1636.7,1636.6,17.81031075]
[1693673143101,0.63815298,1636.8,1636.6,18.29031075]
[1693673143314,0.63815298,1636.8,1636.7,3.0]
[1693673143547,0.63815298,1636.8,1636.7,6.08185404]
[1693673143745,0.63815298,1636.8,1636.7,7.57527783]
[1693673143927,1.69968074,1636.8,1636.7,7.57527783]
[1693673144143,0.63815298,1636.8,1636.7,7.57527783]
[1693673144345,1.06147826,1636.8,1636.7,9.11927783]
[1693673144547,2.65767155,1636.9,1636.7,9.11927783]
[1693673144752,1.59619329,1636.9,1636.8,4.62585404]
[1693673144918,4.2498853,1636.9,1636.8,4.62585404]
[1693673145119,4.25609464,1636.9,1636.8,4.62585404]
[1693673147570,3.29805433,1636.9,1636.8,4.62585404]
[1693673149274,3.29805433,1636.9,1636.8,7.62585404]
[1693673149429,2.23657753,1636.9,1636.8,8.68843944]
[1693673150889,3.03370043,1636.9,1636.8,8.68843944]
[1693673151181,4.09517723,1636.9,1636.8,8.68843944]
[1693673152155,4.09517723,1636.9,1636.8,9.16843944]
[1693673152354,2.50296202,1636.9,1636.8,9.16843944]
[1693673153987,0.80333224,1636.9,1636.8,9.16843944]
[1693673154396,0.00620934,1636.9,1636.8,9.16843944]
[1693673154988,0.63815298,1637.0,1636.8,9.16843944]
[1693673155282,0.63815298,1637.0,1636.9,1.39684394]
[1693673155487,3.29170493,1637.0,1636.9,3.56185404]
[1693673155684,3.61159226,1637.0,1636.9,3.08185404]
[1693673155890,4.40877927,1637.0,1636.9,3.08185404]
[1693673156091,4.41499641,1637.0,1636.9,3.08185404]
[1693673159211,4.41499641,1637.0,1636.9,7.66368404]
[1693673167986,5.05347542,1637.0,1636.9,7.66368404]
[1693673168719,4.41499641,1637.0,1636.9,8.14316758]
[1693673170197,5.05347428,1637.0,1636.9,8.14316758]
[1693673170396,4.41499641,1637.0,1636.9,8.14316758]
[1693673170950,5.05348017,1637.0,1636.9,8.14316758]
[1693673181148,4.09543986,1637.0,1636.9,10.80148434]
[1693673181747,4.09543986,1637.0,1636.9,11.28148434]
[1693673184470,5.05348017,1637.0,1636.9,11.28148434]
[1693673185043,5.05348017,1637.0,1636.9,9.73748434]
[1693673185364,4.09543986,1637.0,1636.9,9.73748434]
[1693673186372,5.05348017,1637.0,1636.9,9.73748434]
[1693673186967,5.05348017,1637.0,1636.9,11.28148434]
[1693673188367,4.41499641,1637.0,1636.9,11.28148434]
[1693673188578,5.05427976,1637.0,1636.9,11.28148434]
[1693673188779,0.80340415,1637.0,1636.9,14.28148434]
[1693673189068,0.33800415,1637.0,1636.9,14.28148434]
[1693673189272,0.52439036,1637.0,1636.9,14.28148434]
[1693673189433,1.59732366,1637.3,1636.9,14.28148434]
[1693673189631,1.59732366,1637.3,1637.2,1.544]
[1693673189834,1.59732366,1637.3,1637.2,5.10585404]
[1693673190035,1.60213355,1637.3,1637.2,8.10585404]
[1693673190337,3.29712275,1637.3,1637.2,8.91643944]
[1693673190562,0.64409324,1637.3,1637.2,8.91643944]
[1693673191168,0.63928335,1637.3,1637.2,8.91643944]
[1693673192394,1.59732366,1637.4,1637.2,8.91643944]
[1693673192668,1.59732366,1637.4,1637.3,8.10585404]
[1693673192879,3.18911803,1637.4,1637.3,9.29749798]
[1693673193039,3.19396762,1637.4,1637.3,9.29749798]
[1693673193451,3.29712376,1637.4,1637.3,9.29749798]
[1693673195184,2.23592731,1637.4,1637.3,9.29749798]
[1693673195685,3.29712376,1637.4,1637.3,9.29749798]
[1693673195890,1.70532939,1637.4,1637.3,9.29749798]
[1693673196258,0.64413294,1637.4,1637.3,9.29749798]
[1693673196459,1.60158044,1637.4,1637.3,9.29749798]
[1693673196695,2.66277689,1637.4,1637.3,9.29749798]
[1693673199965,1.70532939,1637.4,1637.3,9.29749798]
[1693673200165,0.63928335,1637.4,1637.3,9.29749798]
[1693673204111,1.6015021,1637.4,1637.3,9.29749798]
[1693673204275,2.66269855,1637.4,1637.3,9.29749798]
[1693673206364,4.25444143,1637.4,1637.3,9.29749798]
[1693673210915,4.25444143,1637.4,1637.3,6.56185404]
[1693673210916,4.57319839,1637.4,1637.3,6.56185404]
[1693673211124,4.57319839,1637.4,1637.3,5.9251276]
[1693673211891,7.01660399,1637.4,1636.9,56.52082949]
[1693673212086,1.5934604,1637.2,1637.0,3.08185404]
[1693673212319,1.69858061,1637.1,1637.0,3.08185404]
[1693673212621,2.65593383,1637.1,1637.0,3.08185404]
[1693673213127,0.96217864,1637.1,1637.0,3.08185404]
[1693673213297,0.96217864,1637.1,1637.0,6.08185404]
[1693673214125,0.95735322,1637.1,1637.0,6.08185404]
[1693673214633,1.5934604,1637.2,1637.0,6.08185404]
[1693673214789,4.24673905,1637.2,1637.0,10.66326404]
[1693673214990,0.00480946,1637.1,1637.0,10.66326404]
[1693673216333,2.6547741,1637.2,1637.0,10.66326404]
[1693673216626,4.24673719,1637.2,1637.1,3.0]
[1693673216830,4.24673719,1637.2,1637.1,6.08185404]
[1693673217147,4.25154382,1637.2,1637.1,6.08185404]
[1693673220854,3.29546758,1637.2,1637.1,6.08185404]
[1693673221511,4.25154382,1637.2,1637.1,6.08185404]
[1693673223535,3.29546758,1637.2,1637.1,6.08185404]
[1693673225634,4.25154382,1637.2,1637.1,6.08185404]
[1693673226139,3.29546758,1637.2,1637.1,6.08185404]
[1693673226521,4.35427417,1637.2,1637.1,6.08185404]
[1693673227232,4.35427417,1637.2,1637.1,6.57022598]
[1693673230047,2.76231108,1637.2,1637.1,9.70938958]
[1693673230410,0.00480663,1637.2,1637.1,9.70938958]
[1693673231244,2.65471146,1637.3,1637.1,9.70938958]
[1693673231448,4.24658592,1637.3,1637.2,3.08185404]
[1693673231617,4.24658592,1637.3,1637.2,6.08185404]
[1693673232138,5.31031463,1637.3,1637.2,6.08185404]
[1693673232335,5.31031463,1637.3,1637.2,7.052793]
[1693673234369,4.67293047,1637.3,1637.2,7.052793]
[1693673234532,5.31150981,1637.3,1637.2,7.052793]
[1693673235946,4.67293047,1637.3,1637.2,7.052793]
[1693673236161,4.67293047,1637.3,1637.2,6.08185404]
[1693673236671,4.67293047,1637.3,1637.2,3.08185404]
[1693673242376,1.06372871,1637.3,1637.2,3.08185404]
[1693673242559,4.6747531,1637.3,1637.2,3.08185404]
[1693673245278,5.31332377,1637.3,1637.2,3.08185404]
[1693673245584,5.31332377,1637.3,1637.2,6.08185404]
[1693673251301,4.6747531,1637.3,1637.2,6.08185404]
[1693673257800,4.6747531,1637.3,1637.2,12.24232101]
[1693673258304,4.6747531,1637.3,1637.2,6.08185404]
[1693673258872,4.6747531,1637.3,1637.2,12.24232374]
[1693673259069,4.6747531,1637.3,1637.2,14.14979331]
[1693673259305,4.6747531,1637.3,1637.2,7.98932361]
[1693673262379,4.6747531,1637.3,1637.2,14.14979067]
[1693673262720,4.6747531,1637.3,1637.2,14.14976609]
[1693673263528,4.6747531,1637.3,1637.2,7.98932361]
[1693673263941,4.6747531,1637.3,1637.2,14.14977073]
[1693673264409,4.6747531,1637.3,1637.2,7.98932361]
[1693673264589,4.6747531,1637.3,1637.2,14.14977302]
[1693673265444,4.6747531,1637.3,1637.2,7.98932361]
[1693673265745,4.6747531,1637.3,1637.2,14.14977493]
[1693673270044,4.6747531,1637.3,1637.2,12.24230536]
[1693673270215,4.6747531,1637.3,1637.2,6.08185404]
[1693673271351,8.95179749,1637.3,1637.1,1.4183778]
[1693673271553,6.05391596,1637.2,1637.1,3.57022598]
[1693673271721,6.05391596,1637.2,1637.1,6.08185404]
[1693673271915,7.54365981,1637.2,1636.9,49.28948354]
[1693673272121,6.05370611,1637.1,1637.0,6.08185404]
[1693673272915,4.8890569,1637.1,1637.0,6.08185404]
[1693673273217,6.05863892,1637.1,1637.0,6.08185404]
[1693673273742,4.89370776,1637.1,1637.0,6.08185404]
[1693673274541,3.61596095,1637.1,1637.0,6.08185404]
[1693673275261,4.89370776,1637.1,1637.0,6.08185404]
[1693673275562,3.61596095,1637.1,1637.0,6.08185404]
[1693673284387,4.53419026,1637.1,1637.0,3.0]
[1693673284595,4.53419026,1637.1,1636.9,0.47948354]
[1693673284891,1.69919014,1637.0,1636.7,4.544]
[1693673285068,1.69919014,1637.0,1636.8,4.62585404]
[1693673285268,2.5134937,1637.0,1636.8,4.62585404]
[1693673285468,2.5134937,1637.0,1636.9,3.0]
[1693673285671,3.57493042,1637.0,1636.9,3.0]
[1693673286092,3.57972941,1637.0,1636.9,3.0]
[1693673286494,4.76533766,1637.0,1636.9,3.0]
[1693673286683,5.53952163,1637.0,1636.9,3.0]
[1693673287897,7.13169791,1637.0,1636.9,3.0]
[1693673288079,3.0,1636.9,1636.8,3.08185404]
[1693673288662,3.0,1636.9,1636.7,0.49907386]
[1693673288975,3.0,1636.9,1636.7,6.08185404]
[1693673289176,0.00477805,1636.8,1636.7,6.08185404]
[1693673289589,1.19009187,1636.8,1636.7,6.08185404]
[1693673290474,1.19009187,1636.8,1636.7,3.08185404]
[1693673293499,1.19009187,1636.8,1636.6,0.50051046]
[1693673293671,0.6378937,1636.7,1636.5,3.0]
[1693673293869,3.0,1636.6,1636.5,3.08185404]
[1693673294102,3.00476243,1636.6,1636.5,3.08185404]
[1693673294312,3.00476243,1636.6,1636.3,0.1]
[1693673294313,6.76699928,1636.6,1636.3,0.1]
[1693673294469,3.0,1636.4,1636.3,0.1]
[1693673295188,3.00473616,1636.4,1636.3,0.1]
[1693673295391,3.36889165,1636.4,1636.3,0.1]
[1693673296365,5.0675072,1636.4,1636.3,0.1]
[1693673297681,6.6601988,1636.4,1636.2,2.93629721]
[1693673297994,4.00571037,1636.4,1636.2,6.01815125]
[1693673298200,3.64155488,1636.4,1636.2,6.01815125]
[1693673300307,3.64155488,1636.4,1636.3,3.08185404]
[1693673300609,4.70329155,1636.4,1636.3,3.03185404]
[1693673301511,5.8843073,1636.4,1636.3,3.03185404]
[1693673301676,7.47691279,1636.4,1636.3,3.03185404]
[1693673301883,5.8843073,1636.4,1636.3,3.03185404]
[1693673302102,5.8843073,1636.4,1636.3,3.78306917]
[1693673302357,7.47689142,1636.4,1636.3,3.78306917]
[1693673302672,7.47689142,1636.4,1636.3,5.32706917]
[1693673302879,5.8843073,1636.4,1636.3,5.32706917]
[1693673303224,4.18575191,1636.4,1636.3,5.80706917]
[1693673303510,1.18575191,1636.4,1636.3,5.80706917]
[1693673304682,0.00473616,1636.4,1636.3,5.80706917]
[1693673305183,1.69849112,1636.5,1636.3,5.80706917]
[1693673305376,0.63681872,1636.5,1636.4,5.12470692]
[1693673305583,0.63681872,1636.5,1636.4,8.20656096]
[1693673305985,1.74673131,1636.5,1636.4,8.20656096]
[1693673306279,2.17625897,1636.5,1636.4,8.20656096]
[1693673306483,2.81307615,1636.5,1636.4,8.20656096]
[1693673307920,1.11464813,1636.5,1636.4,8.20656096]
[1693673308089,1.11464813,1636.5,1636.4,8.68656096]
[1693673308479,0.00473554,1636.5,1636.4,8.68656096]
[1693673309218,1.59472075,1636.6,1636.4,8.68656096]
[1693673309419,1.69841733,1636.5,1636.4,4.06070692]
[1693673309622,2.80867752,1636.5,1636.4,2.60470692]
[1693673309919,2.80867752,1636.5,1636.4,5.024]
[1693673310125,2.80867752,1636.5,1636.3,1.86752655]
[1693673310126,11.761721,1636.5,1636.3,1.86752655]
[1693673310328,3.0,1636.3,1636.2,0.92911912]
[1693673310493,3.0,1636.3,1636.1,0.58166539]
[1693673310692,0.95362122,1636.2,1636.1,0.58166539]
[1693673310894,4.24339585,1636.2,1636.1,0.58166539]
[1693673311235,5.36933348,1636.2,1636.1,0.58166539]
[1693673311443,4.73357963,1636.2,1636.1,0.58166539]
[1693673312114,5.36932874,1636.2,1636.1,2.12566539]
[1693673313020,4.41570752,1636.2,1636.1,2.12566539]
[1693673313230,4.41099415,1636.2,1636.1,2.12566539]
[1693673313423,3.28976989,1636.2,1636.1,6.20008597]
[1693673313735,0.63574911,1636.2,1636.1,9.20008597]
[1693673314048,1.69734772,1636.2,1636.1,9.20008597]
[1693673314208,0.63574911,1636.2,1636.1,9.20008597]
[1693673314613,3.28997323,1636.2,1636.1,9.20008597]
[1693673315014,0.63574911,1636.2,1636.1,9.20008597]
[1693673315211,2.22837462,1636.2,1636.1,9.20008597]
[1693673315410,0.63574911,1636.2,1636.1,9.20008597]
[1693673315618,2.22837462,1636.2,1636.1,9.20008597]
[1693673315825,0.63574911,1636.2,1636.1,9.20008597]
[1693673315992,2.22837462,1636.2,1636.1,9.20008597]
[1693673316197,0.95362122,1636.4,1636.1,15.97335201]
[1693673316393,1.73091262,1636.5,1636.3,4.62585404]
[1693673316625,1.27141262,1636.6,1636.4,3.56185404]
[1693673316927,1.27141262,1636.6,1636.5,6.08185404]
[1693673317133,2.6539442,1636.6,1636.5,6.56185404]
[1693673317334,1.59236652,1636.6,1636.5,6.56185404]
[1693673317508,1.59236652,1636.6,1636.5,7.21803944]
[1693673318036,2.5796742,1636.6,1636.5,7.21803944]
[1693673318201,1.06595518,1636.6,1636.5,7.21803944]
[1693673318731,0.0043775,1636.6,1636.5,7.21803944]
[1693673319032,2.3329903,1636.7,1636.5,7.21803944]
[1693673319228,1.06157768,1636.6,1636.5,8.10585404]
[1693673319428,1.05364768,1636.6,1636.5,9.64985404]
[1693673319611,1.27141262,1636.7,1636.5,9.64985404]
[1693673319808,1.27141262,1636.7,1636.6,2.024]
[1693673320013,1.27141262,1636.7,1636.6,5.10585404]
[1693673320210,3.39858323,1636.7,1636.6,9.07083944]
[1693673320519,1.27546768,1636.7,1636.6,9.07083944]
[1693673321104,1.27141262,1636.7,1636.6,9.07083944]
[1693673322233,1.2754664,1636.7,1636.6,9.07083944]
[1693673322634,0.00405378,1636.7,1636.6,9.07083944]
[1693673323136,2.86771811,1636.8,1636.6,9.07083944]
[1693673323428,2.86771811,1636.8,1636.7,6.98893798]
[1693673323637,2.86771811,1636.8,1636.7,7.46893798]
[1693673323839,4.99079542,1636.8,1636.7,7.46893798]
[1693673324204,4.99485701,1636.8,1636.7,7.46893798]
[1693673324435,0.00406159,1636.8,1636.7,9.01293798]
[1693673325108,1.27141262,1636.9,1636.7,9.01293798]
[1693673325309,1.27141262,1636.9,1636.8,2.4452938]
[1693673325531,1.27141262,1636.9,1636.8,5.52714784]
[1693673325732,2.22697603,1636.9,1636.8,8.52714784]
[1693673325929,2.22697603,1636.9,1636.8,9.00714784]
[1693673326136,2.23104801,1636.9,1636.8,9.00714784]
[1693673326635,0.95963539,1636.9,1636.8,9.00714784]
[1693673327651,1.2754846,1636.9,1636.8,6.08185404]
[1693673328235,4.99069309,1636.9,1636.8,6.08185404]
[1693673328646,4.99076721,1636.9,1636.8,6.08185404]
[1693673329641,3.82340427,1636.9,1636.8,6.08185404]
[1693673330626,2.55199165,1636.9,1636.8,6.08185404]
[1693673330944,3.09396263,1636.9,1636.8,6.08185404]
[1693673331650,4.16393667,1636.9,1636.8,6.08185404]
[1693673332448,3.62196569,1636.9,1636.8,6.08185404]
[1693673333372,4.2594082,1636.9,1636.8,7.62585404]
[1693673333575,3.30378699,1636.9,1636.8,7.62585404]
[1693673333783,4.25944504,1636.9,1636.8,7.62585404]
[1693673333933,3.30378699,1636.9,1636.8,7.62585404]
[1693673334243,4.25944504,1636.9,1636.8,7.62585404]
[1693673334432,3.30378699,1636.9,1636.8,7.62585404]
[1693673336958,3.30378699,1636.9,1636.8,6.08185404]
[1693673338566,1.71152537,1636.9,1636.8,6.08185404]
[1693673339458,2.77298644,1636.9,1636.8,6.08185404]
[1693673344566,1.07404602,1636.9,1636.8,6.08185404]
[1693673345646,1.07404602,1636.9,1636.8,6.84443944]
[1693673345964,1.04396061,1636.9,1636.8,8.86843944]
[1693673346167,1.0478734,1636.9,1636.8,8.86843944]
[1693673346370,0.00391279,1636.9,1636.8,8.86843944]
[1693673347145,1.69881048,1637.1,1636.8,8.86843944]
[1693673347354,1.69881048,1637.1,1636.9,7.44869798]
[1693673352078,1.69881048,1637.1,1637.0,1.544]
[1693673352281,1.69881048,1637.1,1637.0,6.64985404]
[1693673352282,1.06128215,1637.1,1637.0,6.64985404]
[1693673352453,0.63720372,1637.2,1637.0,9.64985404]
[1693673352648,0.63720372,1637.2,1637.1,9.07083944]
[1693673353180,2.22905826,1637.2,1637.1,9.07083944]
[1693673353482,1.69844455,1637.2,1637.1,9.07083944]
[1693673353850,0.63720372,1637.2,1637.1,9.07083944]
[1693673354894,2.22903159,1637.2,1637.1,9.07083944]
[1693673355081,3.29027242,1637.2,1637.1,9.07083944]
[1693673355265,1.69844455,1637.2,1637.1,9.07083944]
[1693673355465,0.63720372,1637.2,1637.1,9.07083944]
[1693673355870,2.2290289,1637.2,1637.1,9.07083944]
[1693673356185,3.29026973,1637.2,1637.1,9.07083944]
[1693673356387,2.2290289,1637.2,1637.1,9.07083944]
[1693673356589,3.29026973,1637.2,1637.1,9.07083944]
[1693673356754,2.2290289,1637.2,1637.1,9.07083944]
[1693673357082,4.88013668,1637.3,1637.1,5.44508802]
[1693673357282,0.95565805,1637.2,1637.1,5.44508802]
[1693673357589,4.66161766,1637.2,1637.1,5.44508802]
[1693673358155,4.66512585,1637.2,1637.1,5.44508802]
[1693673358384,5.93653847,1637.2,1637.1,5.44508802]
[1693673359302,7.10344609,1637.2,1637.1,5.44508802]
[1693673360266,5.93679681,1637.2,1637.1,5.44508802]
[1693673360467,7.10344593,1637.2,1637.1,5.44508802]
[1693673360778,5.93699024,1637.2,1637.1,5.44508802]
[1693673361382,4.98088042,1637.2,1637.1,5.44508802]
[1693673361589,7.10339943,1637.2,1637.1,5.44508802]
[1693673371278,5.9376156,1637.2,1637.1,5.44508802]
[1693673372282,4.66620298,1637.2,1637.1,5.44508802]
[1693673373286,5.30403398,1637.2,1637.1,5.44508802]
[1693673374524,4.3472988,1637.2,1637.1,5.44508802]
[1693673376198,4.34379061,1637.2,1637.1,5.44508802]
[1693673376424,2.75196543,1637.2,1637.1,5.44508802]
[1693673377922,5.30060585,1637.2,1637.1,5.44508802]
[1693673378132,5.3199767,1637.2,1637.1,5.44508802]
[1693673378301,5.3199767,1637.2,1637.1,3.08185404]
[1693673380590,8.3199767,1637.2,1637.1,3.08185404]
[1693673384044,8.3199767,1637.2,1637.0,1.41238506]
[1693673384222,1.69959828,1637.1,1636.9,3.18042134]
[1693673384416,2.7545424,1637.1,1636.9,3.26227538]
[1693673384616,1.69330157,1637.1,1636.9,3.26227538]
[1693673390339,2.65003675,1637.1,1636.9,3.26227538]
[1693673396366,1.69330157,1637.1,1637.0,3.08185404]
[1693673396573,2.75463016,1637.1,1637.0,8.10585404]
[1693673396869,1.69968604,1637.1,1637.0,8.10585404]
[1693673397440,2.76928164,1637.1,1637.0,8.10585404]
[1693673401373,4.36129421,1637.1,1637.0,6.08185404]
[1693673405343,5.31802939,1637.1,1637.0,3.08185404]
[1693673406778,5.31802939,1637.1,1637.0,3.9891084]
[1693673407743,6.66602359,1637.1,1637.0,0.90725436]
[1693673407947,6.66602359,1637.1,1636.9,3.0]
[1693673408260,6.66602359,1637.1,1636.8,3.48553302]
[1693673408261,4.24986006,1637.0,1636.8,3.48553302]
[1693673408553,1.70006073,1636.9,1636.8,6.56738706]
[1693673408878,1.70362643,1636.9,1636.8,6.56738706]
[1693673409070,2.7650796,1636.9,1636.8,6.56738706]
[1693673409249,4.35729155,1636.9,1636.8,6.56738706]
[1693673409446,4.35729155,1636.9,1636.8,0.48553302]
[1693673409447,5.37365184,1636.9,1636.8,0.48553302]
[1693673409652,6.33139822,1636.9,1636.7,3.0]
[1693673409950,3.6777331,1636.9,1636.7,6.08185404]
[1693673410369,2.71982176,1636.9,1636.7,6.08185404]
[1693673420697,1.70346147,1636.9,1636.7,6.08185404]
[1693673427008,1.70346147,1636.9,1636.7,3.08185404]
[1693673427207,3.0,1636.8,1636.7,3.08185404]
[1693673427521,5.76332004,1636.8,1636.7,3.08185404]
[1693673431507,1.06332102,1636.8,1636.7,4.62585404]
[1693673431688,0.6384426,1636.9,1636.7,8.13708968]
[1693673432012,3.29220583,1636.9,1636.8,4.62585404]
[1693673432513,1.69994792,1636.9,1636.8,4.62585404]
[1693673432698,3.2921986,1636.9,1636.8,4.62585404]
[1693673432886,1.69994792,1636.9,1636.8,4.62585404]
[1693673436130,1.70548945,1636.9,1636.8,4.62585404]
[1693673436596,2.90048557,1636.9,1636.8,4.62585404]
[1693673438128,2.90048557,1636.9,1636.8,5.43956301]
[1693673438432,1.20053765,1636.9,1636.8,14.60085369]
[1693673438749,4.59635394,1637.2,1636.8,15.08085369]
[1693673438901,1.06134292,1637.1,1636.9,6.56185404]
[1693673439095,1.69978552,1637.1,1637.0,0.6561854]
[1693673439344,1.56862709,1637.1,1637.0,5.28203944]
[1693673439700,0.6384426,1637.2,1637.0,5.28203944]
[1693673439901,3.6384426,1637.2,1637.1,4.62585404]
[1693673440146,6.29174895,1637.2,1637.1,4.62585404]
[1693673440858,7.24966029,1637.2,1637.1,4.62585404]
[1693673441201,7.24966029,1637.2,1637.1,3.08185404]
[1693673444131,7.24966029,1637.2,1637.1,5.15405798]
[1693673444315,6.29174895,1637.2,1637.1,5.15405798]
[1693673446431,7.85277158,1637.2,1637.1,5.15405798]
[1693673449747,4.85277158,1637.2,1637.1,5.15405798]
[1693673451424,3.26078742,1637.2,1637.1,8.15405798]
[1693673451744,0.6384426,1637.3,1637.1,8.15405798]
[1693673452044,3.2916183,1637.3,1637.2,1.544]
[1693673452345,3.2916183,1637.3,1637.2,4.62585404]
[1693673452517,4.86570098,1637.3,1637.2,4.62585404]
[1693673453841,4.8644234,1637.3,1637.2,4.62585404]
[1693673455547,4.8644234,1637.3,1637.2,5.9698804]
[1693673456109,4.86914394,1637.3,1637.2,5.9698804]
[1693673459564,4.81914394,1637.3,1637.2,5.9698804]